bitfinex-derivatives/quotes_ETHF0:USTF0_20241105
["timestamp","ask_amount","ask_price","bid_price","bid_amount"]
[1730813757818,1.59769021,2443.3,2443.2,0.2866]
[1730813758015,1.59769021,2443.3,2443.2,8.0194]
[1730813758619,2.3387367,2443.5,2443.2,7.7328]
[1730813758824,0.20479337,2443.4,2443.3,2.84455791]
[1730813759118,0.20479337,2443.4,2443.3,6.93735791]
[1730813759322,0.20479337,2443.4,2443.3,2.84455791]
[1730813759520,0.20479337,2443.4,2443.3,6.93735791]
[1730813759717,0.20479337,2443.4,2443.3,2.84455791]
[1730813760018,2.13394333,2443.5,2443.4,0.28658]
[1730813760223,2.13394333,2443.5,2443.3,2.55796791]
[1730813760414,2.33873654,2443.4,2443.3,2.84454791]
[1730813760613,2.13394333,2443.4,2443.3,2.84454791]
[1730813760823,2.13394333,2443.4,2443.3,6.93734791]
[1730813761614,2.33873654,2443.5,2443.3,6.65076791]
[1730813761815,2.13394333,2443.5,2443.4,0.28658]
[1730813762221,2.3387344,2443.5,2443.4,0.28658]
[1730813762921,0.80226008,2443.5,2443.4,4.37938]
[1730813763118,0.80226008,2443.5,2443.4,0.28658]
[1730813763119,1.59760971,2443.5,2443.4,0.28658]
[1730813763314,1.59760971,2443.5,2443.4,4.61210918]
[1730813763915,0.20477809,2443.6,2443.4,4.32552918]
[1730813763916,1.59760971,2443.6,2443.4,4.32552918]
[1730813764114,1.59760971,2443.6,2443.5,3.72709918]
[1730813764312,1.59760971,2443.6,2443.5,7.81989918]
[1730813765321,0.4452,2443.8,2443.5,7.81989918]
[1730813765322,0.4452,2443.8,2443.7,0.28655]
[1730813765629,3.53462917,2444.1,2444.0,0.28651]
[1730813765815,5.70377258,2444.1,2444.0,0.28651]
[1730813766216,3.03633587,2444.1,2444.0,0.28651]
[1730813767023,5.70376504,2444.1,2444.0,0.28651]
[1730813767224,3.03633587,2444.1,2444.0,0.28651]
[1730813767724,5.70376504,2444.1,2444.0,0.28651]
[1730813768116,5.70376504,2444.1,2443.8,3.2078]
[1730813768316,4.83662011,2444.0,2443.8,3.2078]
[1730813768621,4.83662011,2443.9,2443.8,3.2078]
[1730813768930,4.83662011,2443.9,2443.7,1.113]
[1730813769130,4.83662011,2443.8,2443.7,1.113]
[1730813769724,4.83662011,2443.8,2443.7,1.39955]
[1730813770117,2.16919094,2443.8,2443.7,1.39955]
[1730813770719,4.82543205,2443.8,2443.7,1.113]
[1730813770919,2.66742917,2443.9,2443.8,0.28653]
[1730813771125,3.2078,2444.0,2443.8,0.23281162]
[1730813771320,3.2078,2444.0,2443.9,0.28652]
[1730813771728,3.53462917,2444.1,2444.0,0.28651]
[1730813772025,0.4424,2444.2,2444.1,0.2865]
[1730813772216,0.4424,2444.2,2444.1,0.51932645]
[1730813772530,0.4424,2444.2,2444.1,0.7224]
[1730813772919,0.4424,2444.2,2444.1,0.95522733]
[1730813773228,0.4424,2444.2,2444.1,0.7224]
[1730813775029,0.4424,2444.2,2444.1,0.95519738]
[1730813775530,0.4424,2444.2,2444.1,0.78985612]
[1730813776435,0.4424,2444.2,2444.1,0.55705874]
[1730813776632,0.4424,2444.2,2444.1,0.27055874]
[1730813776934,5.2683957,2444.2,2444.1,0.2865]
[1730813777136,0.4424,2444.2,2444.1,0.2865]
[1730813781736,2.59991987,2444.2,2444.1,0.2865]
[1730813781929,0.4424,2444.2,2444.1,0.2865]
[1730813783129,0.64713369,2444.2,2444.1,0.2865]
[1730813783933,0.64713369,2444.2,2443.8,0.26785861]
[1730813784132,0.423,2444.1,2443.9,0.28652]
[1730813784432,3.07122574,2444.0,2443.6,0.28656]
[1730813784630,5.02878731,2443.9,2443.5,3.2078]
[1730813784826,2.36208117,2443.8,2443.7,0.28654]
[1730813785039,2.66667157,2443.8,2443.7,0.28654]
[1730813785226,2.36208117,2443.8,2443.7,0.28654]
[1730813785431,2.66667157,2443.8,2443.5,3.48388986]
[1730813785641,0.8884,2443.7,2443.5,3.77045986]
[1730813785839,3.55507157,2443.7,2443.5,3.48388986]
[1730813786130,0.20475911,2443.6,2443.5,3.77045986]
[1730813786336,0.20475911,2443.6,2443.5,3.49437]
[1730813788039,2.36369338,2443.6,2443.5,3.49437]
[1730813788240,5.03036495,2443.6,2443.5,3.49437]
[1730813788440,2.36369338,2443.6,2443.5,3.49437]
[1730813788638,2.36392035,2443.6,2443.5,3.2078]
[1730813788847,2.36392035,2443.6,2443.5,3.49437]
[1730813789137,5.03059192,2443.6,2443.5,3.2078]
[1730813789342,5.03059192,2443.6,2443.3,0.28659]
[1730813789530,5.49549192,2443.5,2443.3,0.28659]
[1730813789736,0.20478017,2443.4,2443.2,0.2866]
[1730813790030,0.20478017,2443.4,2443.1,2.55796791]
[1730813790031,2.66667157,2443.3,2443.0,0.4385]
[1730813790230,0.4627,2443.2,2443.1,0.28661]
[1730813790433,0.66748017,2443.2,2443.1,0.28661]
[1730813790629,2.82611411,2443.2,2443.1,0.28661]
[1730813790832,0.66748017,2443.2,2443.1,0.28661]
[1730813791237,0.4627,2443.2,2443.1,2.84457791]
[1730813791438,0.4627,2443.2,2443.1,3.07742453]
[1730813791839,0.4627,2443.2,2443.1,3.07743325]
[1730813792044,0.66750709,2443.2,2443.1,3.07743325]
[1730813793953,0.4627,2443.2,2443.1,3.07743325]
[1730813795443,0.4627,2443.2,2443.1,2.84457791]
[1730813795741,0.4627,2443.2,2443.1,3.07739379]
[1730813798251,2.80362127,2443.2,2443.1,3.07739379]
[1730813799352,2.80362127,2443.2,2443.1,3.07765073]
[1730813799654,0.66751128,2443.2,2443.1,3.07765073]
[1730813801647,0.66751128,2443.2,2443.1,0.23307282]
[1730813801851,0.66751128,2443.2,2443.0,0.28662]
[1730813802548,0.4627,2443.2,2443.1,0.28662]
[1730813803844,3.13376833,2443.2,2443.1,0.28662]
[1730813804241,3.33859305,2443.2,2443.1,0.28662]
[1730813804451,2.8251385,2443.2,2443.1,0.28662]
[1730813805251,3.33822073,2443.2,2443.1,0.28662]
[1730813805551,3.13339601,2443.2,2443.1,0.28662]
[1730813805854,5.49583451,2443.2,2443.1,0.28662]
[1730813806051,5.49583451,2443.2,2443.1,2.84458791]
[1730813806251,0.66752472,2443.2,2443.1,3.07768372]
[1730813806448,2.59918346,2443.2,2443.1,2.84458791]
[1730813806646,2.80394319,2443.2,2443.1,3.07767702]
[1730813806950,2.80394319,2443.2,2443.1,2.84458791]
[1730813806951,5.49510196,2443.2,2443.1,2.84458791]
[1730813807650,0.20481625,2443.2,2443.1,3.07766696]
[1730813807854,2.13645302,2443.2,2443.1,3.07766696]
[1730813808043,2.34126927,2443.2,2443.1,3.07766696]
[1730813808454,2.13645302,2443.2,2443.1,3.07766696]
[1730813809557,2.34126927,2443.2,2443.1,3.07766696]
[1730813810052,1.14136927,2443.2,2443.1,3.07766696]
[1730813810253,1.14136927,2443.2,2443.1,6.88381145]
[1730813810254,0.20481625,2443.2,2443.1,6.88381145]
[1730813810455,1.385,2443.5,2443.1,6.88381145]
[1730813810456,0.20481625,2443.3,2443.1,7.17043145]
[1730813810652,0.20481625,2443.2,2443.1,2.84458791]
[1730813810857,0.20479607,2443.2,2443.1,2.79100732]
[1730813811154,3.59079601,2443.5,2443.1,6.88380732]
[1730813811351,0.20479854,2443.4,2443.3,0.28659]
[1730813811652,0.20479786,2443.4,2443.3,0.28659]
[1730813811853,0.20479786,2443.4,2443.3,0.51962564]
[1730813812061,0.20479786,2443.4,2443.3,0.519627]
[1730813812759,0.20479786,2443.4,2443.3,0.28659]
[1730813813159,0.20479786,2443.4,2443.3,0.51962903]
[1730813813857,0.20479786,2443.4,2443.3,0.28659]
[1730813814360,0.20479786,2443.4,2443.3,0.79177231]
[1730813815154,0.20479786,2443.4,2443.3,3.34974022]
[1730813817766,0.20479786,2443.4,2443.3,3.34975359]
[1730813818260,3.79559387,2443.5,2443.3,0.50519568]
[1730813818467,0.20479786,2443.4,2443.3,0.55872125]
[1730813818659,0.20479786,2443.4,2443.3,0.79182739]
[1730813819459,3.79559387,2443.5,2443.3,0.50523739]
[1730813819664,0.20479786,2443.4,2443.3,0.55872125]
[1730813819867,0.20479786,2443.4,2443.3,0.7918614]
[1730813820670,0.20479865,2443.4,2443.3,0.7918614]
[1730813820873,0.20479865,2443.4,2443.3,0.55872125]
[1730813821063,0.20479865,2443.4,2443.3,0.7918765]
[1730813821268,5.30992428,2443.4,2443.3,0.23315525]
[1730813821468,9.65324827,2443.4,2443.0,3.2078]
[1730813821664,3.49442,2443.1,2442.7,0.28666]
[1730813821864,5.8950822,2443.0,2442.8,0.23323261]
[1730813822068,5.8950822,2443.0,2442.7,0.28666]
[1730813822069,5.0241822,2442.9,2442.7,0.28666]
[1730813822273,2.67153393,2442.9,2442.8,0.2332422]
[1730813822465,2.14749253,2442.9,2442.7,0.28666]
[1730813822771,2.67166849,2442.8,2442.7,0.28666]
[1730813822972,2.35234109,2442.8,2442.7,0.28666]
[1730813823183,2.35234109,2442.8,2442.6,0.26797774]
[1730813823485,5.02336895,2442.7,2442.6,0.28667]
[1730813823675,4.81850811,2442.7,2442.6,0.51992972]
[1730813823874,5.02397656,2442.7,2442.6,0.51992972]
[1730813824070,2.67110015,2442.7,2442.6,0.51992423]
[1730813826383,2.67110015,2442.7,2442.6,3.07789214]
[1730813826581,0.20485901,2442.7,2442.6,7.25818314]
[1730813826781,0.20484297,2442.7,2442.6,7.25818314]
[1730813826976,0.8914,2443.0,2442.6,3.16458314]
[1730813827183,0.4519,2443.3,2443.2,0.2866]
[1730813827382,0.65671365,2443.3,2443.2,0.51985423]
[1730813827582,2.80635191,2443.3,2443.2,0.23325423]
[1730813827881,2.80635191,2443.3,2443.2,0.2333811]
[1730813828076,6.89915191,2443.3,2442.8,3.2078]
[1730813828277,2.33732295,2443.2,2442.9,0.60699047]
[1730813828479,3.65444165,2443.3,2443.1,0.28662]
[1730813828786,2.33798891,2443.2,2443.1,0.28662]
[1730813829083,2.33798891,2443.2,2443.1,0.23344048]
[1730813830776,2.33798891,2443.2,2443.1,0.52006048]
[1730813831376,2.33798891,2443.2,2443.1,0.28662]
[1730813831686,2.33798891,2443.2,2443.1,0.23359968]
[1730813832885,2.34044468,2443.2,2443.1,0.23359968]
[1730813833480,2.34044468,2443.2,2443.1,0.60748653]
[1730813833678,2.34044468,2443.2,2443.1,0.89410653]
[1730813834684,5.54298633,2443.2,2443.1,0.60748653]
[1730813834884,3.40737398,2443.2,2443.1,0.23359968]
[1730813835083,3.40737398,2443.2,2443.0,0.28662]
[1730813835084,8.9604774,2443.2,2443.0,0.28662]
[1730813835288,2.34044468,2443.1,2442.8,0.69623395]
[1730813835492,0.63303233,2443.0,2442.9,0.23366352]
[1730813835694,0.63303233,2443.0,2442.9,0.60758923]
[1730813835695,3.23654468,2443.0,2442.9,0.60758923]
[1730813835892,6.43908633,2443.0,2442.9,0.23366352]
[1730813836093,4.30347398,2443.0,2442.9,0.23366352]
[1730813836298,9.85642288,2443.0,2442.9,0.23366352]
[1730813836991,9.85642288,2443.0,2442.9,0.2336572]
[1730813837194,9.85642288,2443.0,2442.9,0.23366251]
[1730813837494,9.85080014,2443.0,2442.9,0.23366251]
[1730813839387,9.85080014,2443.0,2442.9,0.23361106]
[1730813839593,6.43346359,2443.0,2442.9,0.23361106]
[1730813840184,9.82555628,2443.0,2442.9,0.23361106]
[1730813840385,6.43346359,2443.0,2442.9,0.23361106]
[1730813841395,6.43346359,2443.0,2442.9,0.23358731]
[1730813842693,9.82459306,2443.0,2442.9,0.23358731]
[1730813843497,6.43346359,2443.0,2442.9,0.23358731]
[1730813843895,6.43346359,2443.0,2442.8,0.28665]
[1730813844092,2.79112194,2442.9,2442.8,0.28665]
[1730813844305,2.79112194,2442.9,2442.8,0.52021758]
[1730813846801,2.78006857,2442.9,2442.8,0.52021758]
[1730813848496,2.32376857,2442.9,2442.8,0.52021758]
[1730813848700,5.00142999,2442.9,2442.8,4.98749136]
[1730813848912,5.00142999,2442.9,2442.8,4.38025]
[1730813849103,5.00142999,2442.9,2442.8,4.98741258]
[1730813849299,4.79657927,2442.9,2442.8,4.98741258]
[1730813849498,5.00142999,2442.9,2442.8,4.98741258]
[1730813849695,2.67766142,2442.9,2442.8,4.98741258]
[1730813850106,5.00142999,2442.9,2442.8,7.58805]
[1730813850404,5.00142999,2442.9,2442.8,4.10160617]
[1730813850610,2.67766142,2442.9,2442.8,4.10160617]
[1730813851113,0.19384217,2443.0,2442.8,8.94471887]
[1730813851400,0.4681,2443.5,2443.4,0.28658]
[1730813851603,0.4681,2443.5,2443.4,0.52007934]
[1730813851912,0.4681,2443.5,2443.4,0.52006629]
[1730813852208,0.4447,2443.6,2443.5,0.28657]
[1730813852407,0.4447,2443.6,2443.5,0.52005629]
[1730813852603,0.4447,2443.6,2443.5,0.94355629]
[1730813856209,0.4447,2443.6,2443.5,0.23348629]
[1730813856412,4.82406,2443.6,2443.5,0.23348629]
[1730813856705,0.28657,2443.5,2443.1,3.49441]
[1730813856918,0.441,2443.4,2443.2,0.60693381]
[1730813857115,0.8721,2443.4,2443.3,0.23341383]
[1730813858217,0.8721,2443.4,2443.3,0.23342433]
[1730813860903,0.8721,2443.4,2443.3,0.23343322]
[1730813861110,2.93662191,2443.4,2443.3,0.23343322]
[1730813861309,2.93662191,2443.4,2443.2,0.2866]
[1730813861520,2.93662191,2443.4,2443.3,0.23343811]
[1730813861521,0.8721,2443.4,2443.3,0.23343811]
[1730813861713,2.93675814,2443.4,2443.3,0.23343811]
[1730813862622,3.22333814,2443.4,2443.3,0.23343811]
[1730813863222,6.5270443,2443.4,2443.3,0.23349783]
[1730813863415,6.2404643,2443.4,2443.3,0.23351081]
[1730813864014,2.93675814,2443.4,2443.3,0.23351081]
[1730813864213,0.8721,2443.4,2443.3,0.23351081]
[1730813864521,6.24083199,2443.4,2443.3,0.23351081]
[1730813865020,6.52741199,2443.4,2443.3,0.23351081]
[1730813865211,6.52741199,2443.4,2443.1,0.27067381]
[1730813865212,10.33363199,2443.4,2443.1,0.27067381]
[1730813865414,5.65620904,2443.3,2443.2,0.23355872]
[1730813866216,8.87242575,2443.3,2443.2,0.23355872]
[1730813866420,8.87242018,2443.3,2443.2,0.23355872]
[1730813866721,8.58583018,2443.3,2443.2,0.23355872]
[1730813867817,8.87242018,2443.3,2443.2,0.23355872]
[1730813868023,8.58583018,2443.3,2443.2,0.23355872]
[1730813869521,8.5859895,2443.3,2443.2,0.23355872]
[1730813871221,5.57460591,2443.3,2443.2,0.23355872]
[1730813871421,5.48691237,2443.3,2443.2,0.23355872]
[1730813871624,8.79127896,2443.3,2443.2,0.23355872]
[1730813872120,5.57460591,2443.3,2443.2,0.23355872]
[1730813873519,5.86119591,2443.3,2443.2,0.23355872]
[1730813873923,5.57460591,2443.3,2443.2,0.23355872]
[1730813874129,3.30436659,2443.3,2443.2,0.23355872]
[1730813874328,5.57502192,2443.3,2443.2,0.23355872]
[1730813875329,5.57502192,2443.3,2443.1,0.55542614]
[1730813875527,6.07481576,2443.4,2443.2,0.23366718]
[1730813875824,5.57588043,2443.3,2443.1,0.55542614]
[1730813876024,8.792483,2443.2,2443.1,0.55542614]
[1730813876226,8.792483,2443.2,2443.1,0.78909323]
[1730813876427,5.48722197,2443.2,2443.1,0.78909323]
[1730813877526,5.48722197,2443.2,2443.1,0.52027709]
[1730813879139,3.42143383,2443.2,2443.1,0.52027892]
[1730813879324,8.7786464,2443.2,2443.1,0.52027892]
[1730813879529,8.77889835,2443.2,2443.1,0.52027892]
[1730813880334,5.48722197,2443.2,2443.1,0.52027892]
[1730813880530,5.48722197,2443.2,2443.1,1.70010609]
[1730813880730,2.2706194,2443.2,2443.1,2.5251924]
[1730813881626,2.2706194,2443.2,2443.1,1.91763717]
[1730813881831,2.26217217,2443.2,2443.1,2.23847309]
[1730813882036,2.26217217,2443.2,2443.1,2.52509309]
[1730813882226,2.26217217,2443.2,2443.1,6.61789309]
[1730813882433,4.94328699,2443.2,2443.1,7.65205731]
[1730813882830,0.20482158,2443.2,2443.1,7.65205731]
[1730813883027,0.20479168,2443.5,2443.2,4.0928]
[1730813883328,12.68717914,2444.3,2443.5,1.17982717]
[1730813883529,3.2078,2444.4,2444.1,0.2865]
[1730813883530,2.26106417,2444.2,2444.1,0.2865]
[1730813883731,2.26106417,2444.2,2444.1,0.89354439]
[1730813883928,2.0562988,2444.2,2444.1,0.89354439]
[1730813884130,2.26106417,2444.2,2444.1,0.89354439]
[1730813884537,2.0562988,2444.2,2444.1,0.89354439]
[1730813884731,2.0562988,2444.2,2444.1,2.07337156]
[1730813885228,2.0562988,2444.2,2444.1,1.703333]
[1730813885428,2.0562988,2444.2,2444.1,2.08260109]
[1730813886030,3.2078,2444.4,2444.1,1.79610109]
[1730813886230,2.19099913,2444.3,2444.2,0.52348583]
[1730813886436,2.19099913,2444.3,2444.2,0.23700583]
[1730813886637,2.65779913,2444.3,2444.0,1.46633717]
[1730813886947,2.19033408,2444.2,2444.1,0.23681369]
[1730813887337,6.28153408,2444.2,2443.9,1.43352]
[1730813887539,2.1898325,2444.1,2443.9,0.27022638]
[1730813887731,2.1898325,2444.1,2443.8,3.49433]
[1730813887931,2.1898325,2444.0,2443.9,0.28652]
[1730813888138,0.20474518,2444.0,2443.9,0.52333664]
[1730813888336,2.18991516,2444.0,2443.8,3.2078]
[1730813888534,0.64714518,2443.9,2443.8,3.48029792]
[1730813888744,0.64714518,2443.9,2443.8,3.44459761]
[1730813889037,0.64714518,2443.9,2443.8,3.44457598]
[1730813889242,0.64714518,2443.9,2443.8,3.73110598]
[1730813889445,0.64714518,2443.9,2443.8,3.49433]
[1730813891741,0.64714518,2443.9,2443.8,3.2078]
[1730813892339,0.64714518,2443.9,2443.8,3.49433]
[1730813892950,0.64714518,2443.9,2443.8,3.2078]
[1730813893452,0.64714518,2443.9,2443.8,3.49433]
[1730813893654,0.20474518,2443.9,2443.8,3.49433]
[1730813893853,0.436,2444.1,2444.0,0.28651]
[1730813894346,2.18954543,2444.2,2444.0,0.28651]
[1730813894550,0.20475192,2444.1,2444.0,0.28651]
[1730813894748,0.20473478,2444.3,2444.1,2.55560688]
[1730813895050,0.20473041,2444.2,2444.1,2.55560688]
[1730813895345,0.20473041,2444.2,2444.1,2.79220507]
[1730813895539,0.20473004,2444.3,2444.2,0.28649]
[1730813897248,0.20472978,2444.3,2444.2,0.28649]
[1730813897438,0.20472978,2444.4,2444.2,4.0912]
[1730813897641,0.20472978,2444.3,2444.2,0.56079539]
[1730813897842,3.638,2444.5,2444.3,0.28648]
[1730813898150,0.20472412,2444.4,2444.3,0.28648]
[1730813899738,0.20472412,2444.4,2444.3,0.75008]
[1730813901051,0.20472412,2444.4,2444.2,0.27430539]
[1730813901249,1.60245199,2444.3,2444.2,0.72148]
[1730813901447,1.60245199,2444.3,2444.2,0.28648]
[1730813901650,0.20472412,2444.3,2444.2,0.28649]
[1730813901856,3.638,2444.5,2444.3,0.28648]
[1730813902048,0.20472607,2444.4,2444.3,0.28648]
[1730813903345,1.60197372,2444.4,2444.3,0.28648]
[1730813903546,2.03217372,2444.5,2444.2,3.2078]
[1730813903751,1.06773293,2444.4,2444.2,3.2078]
[1730813903958,1.06773293,2444.4,2444.3,0.28648]
[1730813904344,2.03217372,2444.5,2444.3,2.55560688]
[1730813904550,1e-05,2444.9,2444.4,4.37766]
[1730813904751,1e-05,2444.9,2444.8,2.84202688]
[1730813904752,0.20469861,2444.9,2444.8,2.84202688]
[1730813905153,1e-05,2444.9,2444.8,2.84202688]
[1730813908557,4.09041,2444.9,2444.5,1.153]
[1730813908753,0.4436,2444.8,2444.6,0.28644]
[1730813909059,0.4436,2444.8,2444.5,1.43944]
[1730813909265,0.458,2444.7,2444.5,1.153]
[1730813909476,0.4356,2444.6,2444.5,1.43945]
[1730813909759,0.4436,2444.8,2444.7,0.28643]
[1730813910150,0.4436,2444.8,2444.6,2.84204688]
[1730813910349,0.4436,2444.8,2444.6,0.28644]
[1730813910350,0.8936,2444.7,2444.6,0.28644]
[1730813910857,0.8936,2444.7,2444.4,4.3608]
[1730813911263,0.8936,2444.7,2444.4,4.64726]
[1730813914152,0.8936,2444.7,2444.5,0.28645]
[1730813915353,0.8936,2444.7,2444.4,6.91640688]
[1730813915552,0.8936,2444.7,2444.5,0.28644]
[1730813915953,0.8936,2444.7,2444.5,0.28645]
[1730813916349,0.8936,2444.7,2444.4,6.91640688]
[1730813916350,0.8936,2444.7,2444.4,7.20286688]
[1730813916564,0.8936,2444.7,2444.4,3.2078]
[1730813916766,0.28645,2444.6,2444.3,0.27157021]
[1730813917061,6.23359785,2444.7,2444.2,2.55560688]
[1730813917256,0.49115937,2444.6,2444.2,2.84208688]
[1730813917461,0.28644,2444.6,2444.2,2.84208688]
[1730813917662,6.52002785,2444.7,2444.3,0.28647]
[1730813917973,0.20472216,2444.6,2444.3,0.28647]
[1730813918350,2.62337001,2444.6,2444.2,3.11138791]
[1730813918554,2.41864785,2444.6,2444.2,3.11139791]
[1730813918752,0.28645,2444.6,2444.2,3.11139791]
[1730813919364,2.62337123,2444.6,2444.2,3.11139791]
[1730813919662,0.20472234,2444.5,2444.2,3.11139791]
[1730813919855,0.20472234,2444.5,2444.2,2.82490791]
[1730813920060,0.73337,2444.4,2444.2,0.26930103]
[1730813920362,0.8954,2444.3,2444.0,3.99510688]
[1730813920758,0.8954,2444.3,2444.0,4.26378961]
[1730813921358,0.8954,2444.3,2444.1,0.2865]
[1730813923269,3.23233283,2444.3,2444.1,0.2865]
[1730813923467,0.20473498,2444.2,2444.0,4.26378961]
[1730813924171,0.20473498,2444.2,2444.0,3.97728961]
[1730813924479,0.20473498,2444.2,2444.1,0.2865]
[1730813925467,2.33693283,2444.2,2444.1,0.2865]
[1730813926772,2.33693295,2444.2,2444.1,0.2865]
[1730813927358,0.2047351,2444.2,2444.1,0.2865]
[1730813928372,4.80359129,2444.2,2444.1,0.2865]
[1730813929670,4.80359129,2444.2,2444.1,0.90249461]
[1730813931176,4.80359129,2444.2,2444.1,0.2865]
[1730813931464,4.80374124,2444.2,2444.1,0.90255678]
[1730813933265,4.80374124,2444.2,2444.1,2.08194623]
[1730813936177,4.80415316,2444.2,2444.1,2.08194623]
[1730813938564,4.80415316,2444.2,2444.1,1.70295677]
[1730813938775,4.80415316,2444.2,2444.1,2.08232324]
[1730813939573,1.73999213,2444.2,2444.1,2.08232324]
[1730813939772,4.55069669,2444.7,2444.5,0.28645]
[1730813939971,1.3437,2444.7,2444.6,2.17159677]
[1730813940185,1.3437,2444.7,2444.6,1.88515677]
[1730813940680,1.3437,2444.7,2444.6,2.17159677]
[1730813941375,1.3437,2444.7,2444.6,2.16929149]
[1730813941576,1.3437,2444.7,2444.6,1.93452945]
[1730813941875,1.3437,2444.7,2444.6,1.88285911]
[1730813942171,8.64109669,2444.7,2444.3,1.17938945]
[1730813942372,6.54094059,2444.6,2444.4,0.2348258]
[1730813942581,3.49343669,2444.6,2444.5,0.2348258]
[1730813942774,10.6313289,2444.6,2444.3,1.17938945]
[1730813943076,3.20699669,2444.5,2444.4,0.23486213]
[1730813943272,3.20699669,2444.6,2444.4,0.23486213]
[1730813943471,6.25449165,2444.6,2444.5,0.23486213]
[1730813943678,10.34489165,2444.6,2444.5,0.52131213]
[1730813944682,6.25449165,2444.6,2444.5,0.52131213]
[1730813945183,6.25449165,2444.6,2444.5,0.52120544]
[1730813945867,4.55069669,2444.7,2444.5,0.52120544]
[1730813946069,4.55069669,2444.7,2444.6,0.23475544]
[1730813946275,4.55069669,2444.7,2444.6,0.23470661]
[1730813946679,7.59810818,2444.7,2444.6,0.52114661]
[1730813946989,7.59810818,2444.7,2444.6,0.23470661]
[1730813947280,7.59810818,2444.7,2444.3,0.4269]
[1730813947281,0.28645,2444.6,2444.3,0.28647]
[1730813947582,3.21542862,2444.5,2444.4,0.52124039]
[1730813948079,7.30662862,2444.5,2444.4,0.52124039]
[1730813948673,3.21542862,2444.6,2444.4,0.52124039]
[1730813948872,3.21542862,2444.6,2444.5,0.52123039]
[1730813949275,3.21542862,2444.6,2444.5,0.52120942]
[1730813949481,6.26293818,2444.6,2444.5,0.52120942]
[1730813949676,5.12012201,2444.6,2444.5,0.52120942]
[1730813949876,8.16763039,2444.6,2444.5,0.52120942]
[1730813950077,5.12012201,2444.6,2444.5,0.52120942]
[1730813950278,8.16763167,2444.6,2444.5,0.52120942]
[1730813950473,5.12012201,2444.6,2444.5,0.23475942]
[1730813950675,8.1676191,2444.6,2444.5,0.52120942]
[1730813951980,9.04297128,2444.6,2444.5,0.52120942]
[1730813952287,12.77926987,2444.6,2444.5,0.23475942]
[1730813952876,12.7799945,2444.6,2444.5,0.23475942]
[1730813953085,9.04369591,2444.6,2444.5,0.23475942]
[1730813953283,9.04369591,2444.6,2444.5,0.52138078]
[1730813953481,12.7799945,2444.6,2444.5,0.28645]
[1730813953681,12.7799945,2444.6,2444.5,0.52138206]
[1730813955889,8.6895945,2444.6,2444.5,0.8975873]
[1730813956182,4.95329591,2444.6,2444.5,0.8975873]
[1730813956388,8.6895945,2444.6,2444.5,0.52138206]
[1730813957085,8.6895945,2444.6,2444.5,0.5194041]
[1730813957486,11.90169121,2444.6,2444.5,0.5194041]
[1730813958592,8.16539262,2444.6,2444.5,0.60583114]
[1730813958888,8.45183262,2444.6,2444.5,0.2329541]
[1730813959384,8.16539262,2444.6,2444.5,0.89236584]
[1730813959682,8.16539262,2444.6,2444.5,0.60593387]
[1730813959886,8.45183262,2444.6,2444.5,0.2329541]
[1730813960187,12.54223262,2444.6,2444.5,0.2329541]
[1730813960575,16.7544117,2444.6,2444.5,0.2329541]
[1730813960881,16.4679717,2444.6,2444.5,0.2329541]
[1730813961383,11.9225992,2444.6,2444.5,0.89243991]
[1730813961975,8.16539262,2444.6,2444.5,0.60598991]
[1730813962181,16.75501641,2444.6,2444.5,0.60598991]
[1730813963399,13.54721641,2444.6,2444.5,0.60598991]
[1730813963684,16.75501641,2444.6,2444.5,0.60598991]
[1730813963885,12.37817641,2444.6,2444.5,0.60598991]
[1730813964278,12.37817641,2444.6,2444.5,0.89243991]
[1730813964475,11.92358533,2444.6,2444.5,1.4416327]
[1730813964881,11.92358533,2444.6,2444.5,0.83561473]
[1730813965077,11.92358533,2444.6,2444.5,1.44194106]
[1730813965281,11.92358533,2444.6,2444.5,2.62115005]
[1730813966387,11.92358533,2444.6,2444.5,2.33470005]
[1730813966586,11.92358533,2444.6,2444.5,1.15543791]
[1730813966784,12.54463728,2444.6,2444.5,0.60629843]
[1730813966989,16.75681636,2444.6,2444.5,0.60629843]
[1730813968687,16.75681636,2444.6,2444.5,0.60617286]
[1730813969088,16.75681636,2444.6,2444.5,0.23312118]
[1730813969394,16.75681636,2444.6,2444.5,0.60616081]
[1730813970294,13.54901636,2444.6,2444.5,0.60616081]
[1730813970594,16.75681636,2444.6,2444.5,0.60616081]
[1730813971396,16.75701244,2444.6,2444.5,0.60616081]
[1730813971990,13.54921244,2444.6,2444.5,0.60616081]
[1730813972182,16.75701244,2444.6,2444.5,0.60616081]
[1730813972385,16.75701244,2444.6,2444.4,0.28646]
[1730813972591,4.96019336,2444.5,2444.4,0.28646]
[1730813972795,4.96019336,2444.5,2444.4,1.44179163]
[1730813974694,4.96036587,2444.5,2444.4,1.44179163]
[1730813975090,4.96036587,2444.5,2444.4,2.62105377]
[1730813975297,5.67075771,2444.5,2444.4,2.62105377]
[1730813975496,8.7186356,2444.5,2444.4,3.12458644]
[1730813975994,4.96036082,2444.5,2444.4,4.00310463]
[1730813976593,8.18171183,2444.5,2444.4,3.12458644]
[1730813976789,3.2078,2444.6,2444.4,2.83803661]
[1730813977098,8.86575415,2444.6,2444.5,2.33452835]
[1730813977398,11.90527769,2444.6,2444.5,2.62097835]
[1730813978797,8.69747769,2444.6,2444.5,2.62097835]
[1730813979199,11.90527769,2444.6,2444.5,3.1244972]
[1730813979500,11.90527769,2444.6,2444.5,2.8380472]
[1730813979897,11.90527769,2444.6,2444.5,1.15526621]
[1730813980602,11.90533349,2444.6,2444.5,1.15526621]
[1730813982299,11.90533349,2444.6,2444.5,1.42268176]
[1730813982903,8.69753349,2444.6,2444.5,1.42268176]
[1730813983206,11.90533349,2444.6,2444.5,1.42268176]
[1730813983798,8.14708155,2444.6,2444.5,1.15526621]
[1730813984105,8.14708155,2444.6,2444.5,1.15564759]
[1730813985393,8.14725504,2444.6,2444.5,1.15564759]
[1730813985700,8.14725504,2444.6,2444.5,1.1558216]
[1730813985900,4.93945504,2444.6,2444.5,1.1558216]
[1730813986108,8.14725504,2444.6,2444.5,1.4422716]
[1730813986806,8.14725504,2444.6,2444.5,0.6596952]
[1730813987005,8.14725504,2444.6,2444.5,0.28645]
[1730813987203,8.14725504,2444.6,2444.5,1.44230375]
[1730813987798,8.60695504,2444.6,2444.5,1.15585375]
[1730813988210,12.90210011,2444.6,2444.5,1.15585375]
[1730813988510,16.99250011,2444.6,2444.5,1.15585375]
[1730813988698,12.98379504,2444.6,2444.5,1.15585375]
[1730813988899,17.27894011,2444.6,2444.5,1.15593441]
[1730813989205,17.27894011,2444.6,2444.5,1.15599718]
[1730813989610,16.99250011,2444.6,2444.5,0.60658455]
[1730813989809,16.99250011,2444.6,2444.5,1.15599045]
[1730813990205,12.90210011,2444.6,2444.5,1.15599045]